Cogmind - Beta 15 @@@ ROGUE MODE // 2025.06.21 @ 16:26:12 Player: puppuppit Result: Destroyed by S-43 Plague with Heavy Machine Gun Performance ------------- Evolutions (6) 3000 Regions Visited (27) 5400 Robots Destroyed (785) 3925 Value Destroyed (24703) 24703 Prototype IDs (242) 4840 Alien Tech Used (1) 200 Bonus (15134) 15134 TOTAL SCORE: 57202 Bonus ------- Triggered High Security 1000 High Alert Combat Kills 6645 Follower Combat Kills 1939 Entered Garrisons 200 Network Hubs Disabled 200 Aligned with FarCom 300 Met Data Miner 300 Used Data Conduit 3000 Acquired ECA 300 Met Zhirov 300 Built Enhanced Grunts 300 A7 Reached Mainframe 300 Met R17 at Cetus 500 Pursued by Intercept 1000 Friendly Fire -1150 Cogmind --------- Core Integrity 0/1150 Matter 37/300 Energy 271/295 System Corruption 33% Temperature Hot (249) Movement Hovering (146) Ox2 Location -3/Proximity Caves Parts ------- > --- POWER (2) -------- Fusion Reactor > --- PROPULSION (6) --- Improved Gyrokinetic Inverter (fused) Improved Gyrokinetic Inverter > --- UTILITY (6) ------ Large Storage Unit Melee Analysis Suite > --- WEAPON (5) ------- Enhanced Gauss Cannon Enhanced Gauss Cannon Compact Mass Driver Compact Mass Driver > --- INVENTORY (15) --- Light Antimatter Reactor Advanced Power Amplifier Advanced Matter Compressor (342) Encrypted Comm Array Precision Matter Filter Advanced Hacking Suite System Shield Transdimensional Reconstructor PL-3XN's Ring of Power Peak State ------------ > --- POWER ------------ Light Angular Momentum Engine Light Angular Momentum Engine > --- PROPULSION ------- Combat Gravmag System Improved Gyrokinetic Inverter Improved Gyrokinetic Inverter Improved Gyrokinetic Inverter Improved Gyrokinetic Inverter Improved Linear Gravjet > --- UTILITY ---------- Advanced Power Amplifier Improved Cooling System Advanced Coolant Injector Large Storage Unit Long-range Terrain Scanner Advanced Recoil Stabilizer > --- WEAPON ----------- Light Antimatter Cannon Light Antimatter Cannon Compact Mass Driver Compact Mass Driver Compact Mass Driver > --- INVENTORY -------- Improved Gravmag System Improved Gravmag System Cooled Aerolev Unit Improved Coolant Injector Matter Compressor Matter Compressor Advanced Matter Compressor Encrypted Comm Array Advanced Recoil Stabilizer Centrium Medium Armor Plating Railgun Railgun Advanced KE Penetrator PL-3XN's Ring of Power [Rating: 135] Favorites ----------- Power Light Ion Engine Engine Light Ion Engine Power Core Enhanced Fission Core Reactor Light Antimatter Reactor Propulsion Light Treads Treads Light Treads Hover Unit Cooled Airjet Utility Large Storage Unit Device Advanced Gravity Neutralizer Storage Large Storage Unit Processor 0b10 Decoder Chip [Looter] Hackware Improved System Shield Protection Light Armor Plating Weapon Heavy Assault Rifle Energy Gun Beam Rifle Ballistic Gun Heavy Assault Rifle Ballistic Cannon Compact Mass Driver Launcher Mini Grenade Launcher Special Weapon Improved Plasma Cutter Build | -11 -10 -10 -9 -9 -9 -8 -8 -8 -8 -8 -8 -6 -6 -6 -6 -6 -5 -5 -5 -5 -5 -5 -4 -4 -4 -4 -3 ------- Run | Yrd Mat Min Mat Min Exi Min Mat Sto Gar Rec Scr Fac Was Fac Low Dat Pro Fac Ext Cet Arc Hub Fac Upp Upp Zhi Pro Slots Evolved 12 | . . . 2 . . . 2 . . . . 4 . . . . . 2 . . . . 2 . . . . Power 1 | . . . . . . . . . . . . . . . . . . 1 . . . . . . . . . Propulsion 4 | . . . . . . . 1 . . . . 2 . . . . . . . . . . 1 . . . . Utility 4 | . . . . . . . . . . . . 2 . . . . . 1 . . . . 1 . . . . Weapon 3 | . . . 2 . . . 1 . . . . . . . . . . . . . . . . . . . . Parts Attached 348 | 7 5 4 20 5 1 7 26 29 20 9 3 53 4 33 4 . 4 32 12 6 5 5 40 7 . 5 2 Power 56 | 1 . 1 3 4 . 4 5 2 4 1 . 9 1 3 . . 1 5 2 . 1 1 6 1 . 1 . Engine 31 | 1 . 1 3 4 . 4 1 1 2 1 . 6 . 1 . . . . 2 . 1 1 2 . . . . Core 19 | . . . . . . . 4 1 2 . . 2 . 1 . . 1 5 . . . . 3 . . . . Reactor 6 | . . . . . . . . . . . . 1 1 1 . . . . . . . . 1 1 . 1 . Propulsion 84 | 2 . . 2 1 . . 5 12 6 3 2 13 . 9 . . 1 6 4 1 . 1 15 . . 1 . Treads 32 | 2 . . 2 1 . . 4 12 6 3 2 . . . . . . . . . . . . . . . . Leg . | . . . . . . . . . . . . . . . . . . . . . . . . . . . . Wheel . | . . . . . . . . . . . . . . . . . . . . . . . . . . . . Hover 52 | . . . . . . . 1 . . . . 13 . 9 . . 1 6 4 1 . 1 15 . . 1 . Flight . | . . . . . . . . . . . . . . . . . . . . . . . . . . . . Utility 108 | 2 3 2 4 . . 1 7 5 5 2 1 18 3 12 2 . 2 10 1 2 3 3 13 4 . 3 . Device 54 | 1 . 1 1 . . . 3 1 1 1 1 10 2 6 2 . 2 6 . 1 3 1 8 2 . 1 . Storage 7 | 1 2 . . . . . 1 . . . . 1 . 1 . . . . . . . . 1 . . . . Processor 10 | . . . . . . . . 2 . . . 2 . 4 . . . 1 . . . . . 1 . . . Hackware 15 | . . . . . . . 1 1 . . . 4 . 1 . . . 2 1 . . 2 3 . . . . Protection 22 | . 1 1 3 . . 1 2 1 4 1 . 1 1 . . . . 1 . 1 . . 1 1 . 2 . Artifact . | . . . . . . . . . . . . . . . . . . . . . . . . . . . . Weapon 100 | 2 2 1 11 . 1 2 9 10 5 3 . 13 . 9 2 . . 11 5 3 1 . 6 2 . . 2 Energy Gun 5 | . . . . . . 1 . . 2 . . . . . 1 . . . . . . . . 1 . . . Energy Cannon . | . . . . . . . . . . . . . . . . . . . . . . . . . . . . Ballistic Gun 79 | 2 1 . 11 . 1 1 9 9 2 3 . 12 . 7 1 . . 9 4 3 1 . 2 1 . . . Ballistic Cannon 7 | . . . . . . . . . . . . . . 1 . . . 1 . . . . 3 . . . 2 Launcher 8 | . 1 1 . . . . . 1 1 . . 1 . 1 . . . 1 . . . . 1 . . . . Special Weapon 1 | . . . . . . . . . . . . . . . . . . . 1 . . . . . . . . Impact Weapon . | . . . . . . . . . . . . . . . . . . . . . . . . . . . . Slashing Weapon . | . . . . . . . . . . . . . . . . . . . . . . . . . . . . Piercing Weapon . | . . . . . . . . . . . . . . . . . . . . . . . . . . . . Special Melee Weapon . | . . . . . . . . . . . . . . . . . . . . . . . . . . . . Unidentified Prototypes 25 | . . 1 2 . . . 1 2 . . . 9 . 6 . . . 1 . 1 . . . . . 2 . Corrupted Parts 2 | . . . . . . . . . . . . . . . . . . 1 . . . . . 1 . . . System Corruption 17 | . . . . . . . . . . . . . . . . . . 5 . . . . . 12 . . . Parts Lost 94 | . . 1 1 3 . 2 2 8 6 1 . 5 . 7 . 3 3 5 2 2 . 3 29 . 1 . 10 Power 11 | . . 1 . . . . . 1 1 . . . . . . . 1 . 1 . . . 5 . . . 1 Propulsion 22 | . . . . 1 . . 1 . 1 . . . . 2 . 2 . . . 1 . 2 9 . . . 3 Utility 25 | . . . 1 . . 1 . . . 1 . 2 . 3 . . . 1 . 1 . 1 10 . 1 . 3 Weapon 36 | . . . . 2 . 1 1 7 4 . . 3 . 2 . 1 2 4 1 . . . 5 . . . 3 Highest Loss Streak 18 | . . 1 1 1 . 2 1 4 1 1 . 2 . 3 . 3 2 5 1 2 . 3 18 . 1 . 10 To Critical Strikes . | . . . . . . . . . . . . . . . . . . . . . . . . . . . . Average Backups 15 | . 9 14 14 12 11 11 18 18 19 19 19 14 13 13 13 13 13 13 13 13 14 13 13 7 10 12 13 Power . | . . . . . . . 1 . . . . . 1 1 1 1 . . . . . . . . 1 . 1 Propulsion 3 | . . 2 3 2 2 1 . 4 7 7 6 3 3 4 1 . . 2 3 2 1 1 3 . . . . Utility 6 | . 5 7 4 5 5 4 11 10 9 7 8 6 5 5 3 3 5 4 3 3 5 6 5 2 4 5 5 Weapon 4 | . 2 5 5 4 4 4 4 3 2 3 4 3 3 2 6 6 4 4 4 6 5 4 3 3 4 4 4 Tool/Special . | . . . . . . . . . . . . . . . . . . . . . . . . . . . . Unused Backups 73 | . 6 1 9 1 . 1 11 2 1 1 1 6 1 10 . . . 6 2 2 . . 4 2 . 1 5 Power 6 | . . . . 1 . . 3 . 1 . . . . . . . . 1 . . . . . . . . . Propulsion 10 | . . . 3 . . 1 . 1 . . . 1 . . . . . 1 2 . . . . 1 . . . Utility 40 | . 2 1 2 . . . 6 1 . 1 1 4 1 9 . . . 2 . 1 . . 4 . . 1 4 Weapon 16 | . 4 . 4 . . . 2 . . . . 1 . 1 . . . 2 . 1 . . . 1 . . . Tool/Special 1 | . . . . . . . . . . . . . . . . . . . . . . . . . . . 1 Average Slot Usage (%) 95 | . 100 95 96 96 100 99 91 99 94 99 100 89 93 92 96 82 93 93 100 99 100 99 96 65 72 64 72 Engine 5 | . 14 9 7 8 11 11 2 8 3 5 1 3 . . . . . . 3 5 7 11 9 . . . . Core 2 | . . . . . . . 3 . 2 3 7 1 6 4 . . 3 10 6 5 2 . . 3 . . 4 Treads 14 | . 28 28 22 22 22 22 26 27 26 27 27 . . . . . . . . . . . . . . . . Hover 11 | . . . . . . . . . . . . 22 26 26 30 27 32 28 29 29 29 28 30 26 26 28 27 Device 5 | . 2 . 2 . . . 2 . . . . 11 12 10 11 13 13 12 16 16 17 8 13 11 9 6 8 Storage 8 | . 14 14 11 11 11 11 9 9 9 9 9 6 6 6 6 6 6 5 5 5 5 5 5 5 5 5 5 Processor 1 | . . . . . . . . 2 . . . . . 3 6 6 6 7 5 5 5 5 3 1 5 5 5 Hackware 1 | . . . . . . . 1 4 . . . 6 6 2 . . . 1 . . . 7 6 . . . . Protection 5 | . 11 14 8 11 11 11 4 1 7 9 9 1 . 2 . . . . . . . . . 1 5 7 4 Energy Gun 1 | . . . . . . . 3 . 2 8 9 . . . . . . . . . . . . . . . . Ballistic Gun 32 | . 27 27 43 43 44 42 37 44 41 36 36 32 33 32 33 19 27 21 28 28 29 28 7 10 15 1 10 Ballistic Cannon 1 | . . . . . . . . . . . . . . . . . . 1 . . . . 16 . . . 1 Peak Build Rating 135 | 9 9 14 23 21 22 32 39 32 30 26 28 88 89 95 92 91 90 112 105 116 113 111 135 94 88 102 108 Average Rating 52 | 7 8 9 20 20 21 22 32 29 22 23 26 64 87 87 88 73 83 95 102 108 111 109 120 81 87 80 93 On Entrance 57 | . 9 9 13 20 21 22 22 31 30 26 23 27 88 87 85 91 72 83 101 105 112 111 108 52 88 80 101 Naked Turns . | . . . . . . . . . . . . . . . . . . . . . . . . . . . . Heaviest Build 75 | 12 29 35 47 40 40 40 63 67 68 61 63 63 62 66 62 62 60 70 73 72 73 70 75 54 54 67 66 Greatest Support 86 | 40 40 40 40 40 40 40 60 60 60 60 63 83 66 66 74 62 64 68 74 75 72 72 86 55 55 66 66 Greatest Overweight (x) 2 | . . . 1 . . . 1 1 1 1 . 1 . 1 . 2 . 1 1 . 1 1 1 . . 1 . Average Overweight (x) . | . . . . . . . . . . . . . . . . . . . . . . . . . . . . Largest Inventory Capacity 20 | 8 15 15 15 15 15 15 20 20 20 20 20 20 15 15 15 15 15 15 15 15 15 15 15 15 15 15 15 Average Capacity 16 | 7 11 15 15 15 15 15 19 20 20 20 20 15 15 15 15 15 15 15 15 15 15 15 15 15 15 15 15 Most Carried 20 | 1 15 15 15 15 15 15 20 20 20 20 20 20 15 15 15 15 15 15 15 15 15 15 15 15 15 15 15 Average Carried 15 | . 9 14 14 14 14 13 19 19 19 19 19 14 14 14 14 14 14 14 14 14 14 14 14 13 12 13 14 Final Capacity 20 | 8 15 15 15 15 15 15 20 20 20 20 20 15 15 15 15 15 15 15 15 15 15 15 15 15 15 15 15 Final Carried 20 | 1 15 15 15 15 15 15 20 20 20 20 20 15 15 15 15 15 15 15 15 15 15 15 15 15 13 15 9 Class Distribution -------------------- 43% | Scavenger-Skirmisher 14% | Skirmisher 13% | Tank 8% | Mutant 8% | Gunner Dominant Class ---------------- Mutant | -10/Materials Mutant | -10/Mines Tank | -9/Materials Tank | -9/Mines Tank | -9/Exiles Skirmisher | -8/Mines Scavenger-Skirmisher | -8/Materials Scavenger-Skirmisher | -8/Storage Scavenger-Skirmisher | -8/Garrison Scavenger-Skirmisher | -8/Recycling Commander-Tank | -8/Scraptown Scavenger-Skirmisher | -6/Factory Skirmisher | -6/Waste Skirmisher | -6/Factory Gunner | -6/Lower Caves Gunner | -6/Data Miner Gunner | -5/Proximity Caves Skirmisher | -5/Factory Commander-Skirmisher | -5/Extension Scavenger-Skirmisher | -5/Cetus Scavenger-Skirmisher | -5/Archives Scavenger-Skirmisher | -5/Hub_04(d) Scavenger-Skirmisher | -4/Factory Scavenger-Mutant | -4/Upper Caves Scavenger-Tank | -4/Upper Caves Mutant | -4/Zhirov Scavenger-Mutant | -3/Proximity Caves Resources | -11 -10 -10 -9 -9 -9 -8 -8 -8 -8 -8 -8 -6 -6 -6 -6 -6 -5 -5 -5 -5 -5 -5 -4 -4 -4 -4 -3 ----------- Run | Yrd Mat Min Mat Min Exi Min Mat Sto Gar Rec Scr Fac Was Fac Low Dat Pro Fac Ext Cet Arc Hub Fac Upp Upp Zhi Pro Matter Collected 29479 | 388 671 325 1815 431 . 746 1863 2392 1126 505 35 3255 127 4979 417 294 207 2722 1672 315 478 405 3383 542 125 261 . Remotely 106 | . . . . . . . . . . . . 106 . . . . . . . . . . . . . . . Salvage Created 35290 | 231 476 301 3008 571 . 1509 3622 2966 1212 912 . 4043 . 5197 309 160 178 3141 2811 480 497 469 2611 149 87 261 89 Parts 1674 | 16 38 26 177 28 . 75 172 133 84 57 . 166 . 223 12 1 15 114 108 29 34 23 129 4 2 4 4 Haulers Intercepted 31 | . 2 . 5 . . . 3 6 . . . 9 . 3 . . . 1 . . . . 2 . . . . Recyclers Shooed 38 | 1 1 1 5 . . 5 1 2 . 3 . 6 . 7 . . . 2 1 . . . 3 . . . . Parts Field Recycled . | . . . . . . . . . . . . . . . . . . . . . . . . . . . . Retrieved Matter . | . . . . . . . . . . . . . . . . . . . . . . . . . . . . Parts Self-Destructed 25 | . . . . . . . . . . . . . . . 10 . 7 . . . . . . 2 2 1 3 Prevented 4 | . . . . . . . . . . . . . . . . . . . . . . . . 2 2 . . Kills | -11 -10 -10 -9 -9 -9 -8 -8 -8 -8 -8 -8 -6 -6 -6 -6 -6 -5 -5 -5 -5 -5 -5 -4 -4 -4 -4 -3 ------- Run | Yrd Mat Min Mat Min Exi Min Mat Sto Gar Rec Scr Fac Was Fac Low Dat Pro Fac Ext Cet Arc Hub Fac Upp Upp Zhi Pro Combat Hostiles Destroyed 421 | . 8 8 51 9 . 13 46 37 32 5 . 35 . 49 6 4 8 28 24 6 2 5 41 . 1 . 3 Guns 316 | . 5 4 42 9 . 13 46 37 25 5 . 22 . 40 3 3 2 17 21 6 2 5 6 . 1 . 2 Cannons 20 | . . . . . . . . . . . . . . . . . . 2 . . . . 17 . . . 1 AOE 85 | . 3 4 9 . . . . . 7 . . 13 . 9 3 1 6 9 3 . . . 18 . . . . Classes Destroyed 25 | 3 5 . 6 2 . . . . 2 . . 5 . . 2 . . . . . . . . . . . . Worker 98 | 2 6 1 8 6 . 9 15 8 . . . 17 . 12 . . . 4 1 . . 1 8 . . . . Builder 50 | . 1 . 7 2 . 3 7 3 . 6 . 4 . 6 . . . . 3 . . 2 6 . . . . Tunneler 20 | 4 . 1 . 2 . 5 4 . . . . 2 . . . . . . . . . . 2 . . . . Hauler 31 | . 2 . 5 . . . 3 6 . . . 9 . 3 . . . 1 . . . . 2 . . . . Recycler 104 | 1 1 2 10 4 . 10 9 10 . 8 . 10 . 13 . . . 10 8 . . . 8 . . . . Minesweeper 2 | . . . . . . . . . . . . . . . 1 . . . . . . . . 1 . . . Mechanic 8 | . . . 2 . . . 1 1 . . . 1 . 2 . . . . . . . . 1 . . . . Operator 16 | . . . 3 . . . . 1 . . . 1 . 1 . . . 1 . . 9 . . . . . . Drone 3 | . . . . . . . . . . . . 1 . . . . 2 . . . . . . . . . . Watcher 37 | . 3 . 5 . . . 4 1 . . . 5 . 7 . . . 5 1 2 . 1 3 . . . . Swarmer 88 | . 6 6 13 . . 5 . . 7 . . 10 . 5 3 . 5 4 . . . . 20 . 1 . 3 Cutter 2 | . . . . . . . . . 2 . . . . . . . . . . . . . . . . . . Saboteur 3 | . . . . . . . . . . . . 1 . . . . . . 2 . . . . . . . . Grunt 175 | . 2 2 22 . . 7 37 25 13 1 . 8 . 20 2 . . 13 14 . . 1 8 . . . . Brawler 9 | . . . 2 . . 1 1 . 1 . . . . 2 . . . 1 . . . . 1 . . . . Duelist 9 | . . . 2 . . . 2 . . . . . . 2 . . . 1 1 . . . 1 . . . . Protector 5 | . . . 2 . . . . . . . . 1 . 1 . . . . . . . 1 . . . . . Sentry 67 | . . . 10 . . . 6 11 7 4 . 4 . 10 . . 1 4 3 . 2 3 2 . . . . Demolisher 3 | . . . . 1 . . . . 1 . . . . . . . . 1 . . . . . . . . . Specialist 3 | . . . . . . . . . . . . 3 . . . . . . . . . . . . . . . Hunter 7 | . . . . . . . . . . . . 3 . 2 . . . . 2 . . . . . . . . Programmer 21 | . . . . . . . . . 1 . . 4 . 7 1 . . 2 1 . . . 5 . . . . Behemoth 2 | . . . . . . . . . . . . 1 . . . . . . 1 . . . . . . . . Cetus Guard 6 | . . . . . . . . . . . . . . . . . . . . 6 . . . . . . . Enhanced Grunt 4 | . . . . . . . . . . . . . . . . 4 . . . . . . . . . . . Tracker 4 | . . . . . . . . . . . . . . . . . . 1 . . . . 3 . . . . Combat Programmer 2 | . . . . . . . . . . . . . . . . . . 1 . . . . 1 . . . . Samaritan 1 | . . . . . . . . . . . . . . . 1 . . . . . . . . . . . . Assembled 7 | . . . . 7 . . . . . . . . . . . . . . . . . . . . . . . Surgeon 1 | . . . . . . . . . . . . . . . . . . . . . . . 1 . . . . Wasp 1 | . . . . . . . . . . . . . . . . . . . . . . . 1 . . . . Thug 1 | . . . . . . . . . . . . . . . . . . . . . . . 1 . . . . Savage 2 | . . . . . . . . . . . . . . . . . . . 1 . . 1 . . . . . Best Kill Streak 15 | 5 4 9 9 4 . 6 13 5 7 4 . 12 . 15 4 4 6 10 9 4 4 2 11 1 1 . 2 Combat Bots Only 9 | . 3 4 8 2 . 3 9 5 7 3 . 6 . 8 3 4 6 6 5 3 2 1 6 . 1 . 2 Max Kills in Single Turn 8 | 1 2 2 3 1 . 2 3 2 3 1 . 8 . 5 4 1 4 7 5 2 1 2 6 1 1 . 1 Gunslinging 1 | . . . 1 . . 1 1 1 1 . . 1 . 1 . . . . . . . . . . . . . Exploded 5 | . 2 2 3 . . . . . 3 . . 3 . 4 3 1 4 5 3 . . . 5 . . . . Melee . | . . . . . . . . . . . . . . . . . . . . . . . . . . . . Uniques/NPCs Destroyed 2 | . . . . 1 . . . 1 . . . . . . . . . . . . . . . . . . . YI-UF0 (-9/Mines) 01-MTF (-8/Storage) Combat | -11 -10 -10 -9 -9 -9 -8 -8 -8 -8 -8 -8 -6 -6 -6 -6 -6 -5 -5 -5 -5 -5 -5 -4 -4 -4 -4 -3 -------- Run | Yrd Mat Min Mat Min Exi Min Mat Sto Gar Rec Scr Fac Was Fac Low Dat Pro Fac Ext Cet Arc Hub Fac Upp Upp Zhi Pro Hostile Shots Fired 1745 | . 37 40 125 39 . 52 108 172 96 15 . 206 . 285 7 11 9 89 85 10 7 27 235 8 25 . 57 Missed 521 | . 9 9 37 11 . 15 31 32 29 . . 81 . 105 4 3 1 22 33 2 4 8 53 5 14 . 13 Hits 1224 | . 28 31 88 28 . 37 77 140 67 15 . 125 . 180 3 8 8 67 52 8 3 19 182 3 11 . 44 Melee 18 | . . . 2 4 . . 5 . . . . . . 1 . . . . . . . . 6 . . . . Projectile 1206 | . 28 31 86 24 . 37 72 140 67 15 . 125 . 179 3 8 8 67 52 8 3 19 176 3 11 . 44 AOE 24 | . . . . 17 . . . . 4 . . 1 . . . . . 2 . . . . . . . . . Critical Strikes 36 | . . 2 1 . . 1 3 7 2 . . 2 . 4 . . . 3 3 . . 2 5 . 1 . . Part Disruptions 15 | . . . . . . . . 9 . . . 1 . . 1 . . . 1 . . . 3 . . . . Damage Taken 22059 | . 278 330 1165 872 . 469 1246 2397 1140 234 . 1802 . 2588 191 369 172 1659 779 189 84 636 4193 77 204 . 985 Core 3145 | . 67 16 172 127 . 53 164 211 94 17 . 190 . 276 7 143 14 185 111 60 30 53 967 21 25 . 142 Absorbed by Shields 234 | . . . . . . . 28 . . . . . . . . . . . 194 12 . . . . . . . Redirected to Shielding 573 | . . . . . . . . . 34 68 . 98 . 107 . . . . . . . . 102 . 11 . 153 Regen/Repaired (Parts) 1945 | . . . . . . . 332 . . . . . . 643 . . . 312 . . . . 658 . . . . Core Remaining (%) 45 | 100 . 66 . . . 12 . . . . 11 . . . . . 25 . . . . 56 . . . . . Volleys Fired 1303 | 19 60 37 138 30 . 55 110 130 67 25 . 120 . 147 6 6 10 79 65 10 18 17 100 13 9 17 15 Largest 5 | 2 2 2 4 4 . 4 5 5 5 5 . 5 . 5 5 5 4 5 5 5 5 5 5 2 3 1 4 Hottest 264 | 40 40 40 99 92 . 92 127 129 156 147 . 160 . 174 174 179 139 207 181 169 173 173 264 70 103 35 202 Shots Fired 5032 | 38 118 68 530 120 . 223 535 517 222 115 . 546 . 662 26 27 22 288 316 49 90 79 354 26 13 17 31 Gun 4711 | 38 116 64 520 120 . 223 535 517 211 115 . 534 . 657 25 23 19 270 315 49 90 79 114 26 13 17 21 Cannon 255 | . . . . . . . . . . . . . . . . . . 14 . . . . 231 . . . 10 Launcher 66 | . 2 4 10 . . . . . 11 . . 12 . 5 1 4 3 4 1 . . . 9 . . . . Special . | . . . . . . . . . . . . . . . . . . . . . . . . . . . . Kinetic 4854 | 38 116 64 520 120 . 212 454 517 203 103 . 534 . 657 25 23 19 284 315 49 90 79 345 26 13 17 31 Thermal 112 | . . . . . . 11 81 . 8 12 . . . . . . . . . . . . . . . . . Explosive 66 | . 2 4 10 . . . . . 11 . . 12 . 5 1 4 3 4 1 . . . 9 . . . . Electromagnetic . | . . . . . . . . . . . . . . . . . . . . . . . . . . . . Robot Hit Streak 20 | 4 9 6 17 7 . 15 16 14 16 10 . 18 . 9 5 7 17 13 14 15 9 13 20 7 8 8 3 Robot Miss Streak 11 | 5 4 6 4 6 . 3 10 8 4 5 . 8 . 11 1 3 4 4 7 4 3 4 6 2 1 1 10 Penetration Max 3 | . . . . . . . . . . . . 1 . 2 1 1 . 1 3 1 1 1 1 1 . 1 . Secondary Targets 52 | . . . 7 . . 4 6 9 4 . . 2 . 6 . . . 7 3 2 . . 1 . . . 1 Max Gunslinging Chain 2 | . . . 1 . . 1 1 2 1 . . 1 . 1 . . . 1 1 1 . . 1 . . . 1 Autonomous 93 | . . . . . . 11 82 . . . . . . . . . . . . . . . . . . . . Shots Hit Robots 2738 | 17 62 38 300 54 . 123 326 330 101 54 . 316 . 304 17 16 13 169 173 35 52 30 163 18 5 14 8 Core Hits 1693 | 8 31 20 150 32 . 51 201 199 65 27 . 198 . 205 17 38 14 102 112 16 25 21 144 6 2 3 6 Critical Kills 73 | . 2 . . 1 . . 2 3 . . . 6 . 29 1 2 . 5 13 3 3 2 1 . . . . Critical Parts Destroyed 94 | . . . 4 . . 1 1 2 1 . . 4 . 25 2 2 . 14 26 1 3 4 4 . . . . Critical Strikes 187 | . 2 . 4 1 . 1 3 5 1 1 . 12 . 55 3 5 . 20 43 4 6 7 13 . . . 1 Burn 1 | . . . . . . . . . . 1 . . . . . . . . . . . . . . . . . Destroy 176 | . 2 . 4 1 . 1 3 5 1 . . 12 . 55 3 5 . 19 43 4 6 7 5 . . . . Blast 10 | . . . . . . . . . . . . . . . . . . 1 . . . . 8 . . . 1 Melee Attacks . | . . . . . . . . . . . . . . . . . . . . . . . . . . . . Impact . | . . . . . . . . . . . . . . . . . . . . . . . . . . . . Slashing . | . . . . . . . . . . . . . . . . . . . . . . . . . . . . Piercing . | . . . . . . . . . . . . . . . . . . . . . . . . . . . . Sneak Attacks . | . . . . . . . . . . . . . . . . . . . . . . . . . . . . Combat Hostiles . | . . . . . . . . . . . . . . . . . . . . . . . . . . . . Follow-up Attacks . | . . . . . . . . . . . . . . . . . . . . . . . . . . . . Damage Inflicted 72648 | 181 931 593 5118 833 . 2076 6118 5881 2321 889 . 9317 . 9260 733 1314 590 7003 4285 938 1602 1799 9358 500 144 472 392 Guns 52144 | 181 638 383 4130 833 . 2074 6118 5881 1502 889 . 6214 . 7238 501 333 231 4036 3718 938 1602 1602 1778 500 144 472 208 Cannons 5626 | . . . . . . . . . . . . . . . . . . 349 . . . . 5093 . . . 184 Explosions 14837 | . 293 199 988 . . . . . 819 . . 3093 . 2022 232 976 359 2618 567 . . 197 2474 . . . . Melee . | . . . . . . . . . . . . . . . . . . . . . . . . . . . . Ramming 41 | . . 11 . . . 2 . . . . . 10 . . . 5 . . . . . . 13 . . . . Kinetic 55115 | 181 638 383 4130 833 . 1756 3970 5881 1405 797 . 6214 . 7238 501 333 231 4385 3718 938 1602 1602 6871 500 144 472 392 Thermal 5658 | . . . . . . 318 2148 . 97 92 . 496 . 89 . . . 2054 . . . . 364 . . . . Explosive 11333 | . 293 199 988 . . . . . 819 . . 2597 . 1933 232 976 359 564 567 . . . 1806 . . . . Electromagnetic 501 | . . . . . . . . . . . . . . . . . . . . . . 197 304 . . . . Impact . | . . . . . . . . . . . . . . . . . . . . . . . . . . . . Slashing . | . . . . . . . . . . . . . . . . . . . . . . . . . . . . Piercing . | . . . . . . . . . . . . . . . . . . . . . . . . . . . . Highest Corruption 33 | . 5 5 . . . . . 8 9 9 . 9 3 4 6 7 7 8 3 3 3 1 21 33 33 33 33 Average Corruption 7 | . 4 5 . . . . . 7 8 9 . 2 3 1 4 6 4 6 1 3 2 1 5 31 33 33 33 Corruption Purged 32 | . . . . . . . . . . . . 10 . 3 . . 3 8 . . 3 . 5 . . . . Corruption Blocked . | . . . . . . . . . . . . . . . . . . . . . . . . . . . . Effects 404 | . 5 26 . . . . . 32 59 57 . 25 1 36 5 3 10 10 13 7 4 . 55 16 22 12 6 Message Errors 94 | . 3 6 . . . . . 7 16 14 . 3 . 9 2 1 3 1 1 2 1 . 14 6 2 3 . Matter Fused 88 | . . 6 . . . . . 8 13 11 . 7 1 5 1 1 2 2 3 . 1 . 10 4 8 4 1 Heat Flow Errors 40 | . . 3 . . . . . 2 3 4 . 1 . 6 . 1 3 3 1 1 1 . 6 . 3 2 . Energy Discharges 54 | . . 2 . . . . . 3 10 9 . 4 . 4 . . 1 2 5 1 . . 7 1 4 . 1 Parts Rejected 5 | . . . . . . . . . . . . . . 1 . . . . . . 1 . 1 1 . . 1 Parts Fused 3 | . . . . . . . . . 2 . . . . . . . . . . . . . . . 1 . . Data Loss (minor) 39 | . 2 4 . . . . . 4 5 9 . 2 . 3 . . . 1 1 1 . . 5 . . 1 1 Data Loss (major) 29 | . . 1 . . . . . 2 1 4 . 4 . 1 2 . 1 1 1 1 . . 7 2 . 1 . Misfires 16 | . . 2 . . . . . 1 5 1 . 2 . 2 . . . . . . . . 2 . 1 . . Alerts 7 | . . . . . . . . 1 2 1 . . . 1 . . . . . . . . . 1 . 1 . Misdirections 3 | . . . . . . . . . . . . . . . . . . . . . . . 1 1 1 . . Weapon Failures 26 | . . 2 . . . . . 4 2 4 . 2 . 4 . . . . 1 1 . . 2 . 2 . 2 Overload Shots . | . . . . . . . . . . . . . . . . . . . . . . . . . . . . Overflow Damage 1064 | . 52 . 84 . . . . . . . . 306 . . 5 . 9 140 . . . . 464 . . . 4 Projectiles 324 | . . . . . . . . . . . . . . . . . . 7 . . . . 313 . . . 4 Explosions 740 | . 52 . 84 . . . . . . . . 306 . . 5 . 9 133 . . . . 151 . . . . Melee . | . . . . . . . . . . . . . . . . . . . . . . . . . . . . Knockbacks 40 | . . . . . . . . . . . . . . . . . . . . . . . 37 . . . 3 Impact . | . . . . . . . . . . . . . . . . . . . . . . . . . . . . Kinetic 38 | . . . . . . . . . . . . . . . . . . . . . . . 35 . . . 3 Secondary 2 | . . . . . . . . . . . . . . . . . . . . . . . 2 . . . . Self-Inflicted Damage 961 | . . 31 122 . . . . . 84 . . 53 . 64 66 2 . 108 . . . 97 334 . . . . Shots 25 | . . 2 3 . . . . . 3 . . 2 . 3 3 . . 3 . . . 1 5 . . . . Rammed 7 | . . 2 . . . 1 . 1 . . . 1 . . . 1 . . . . . . 1 . . . . Targets Rammed 7 | . . 2 . . . 1 . 1 . . . 1 . . . 1 . . . . . . 1 . . . . Kicked . | . . . . . . . . . . . . . . . . . . . . . . . . . . . . Crushed . | . . . . . . . . . . . . . . . . . . . . . . . . . . . . Highest Temperature 436 | . 21 177 172 90 . 324 238 354 340 239 . 288 . 417 354 308 268 379 331 206 308 436 275 81 167 198 249 Average Temperature 75 | . 6 37 38 28 . 49 56 93 80 59 . 51 . 99 159 187 99 94 64 75 76 123 68 27 67 120 116 Received Heat Transfer 4058 | . 63 90 342 40 . 162 631 846 360 81 . 207 . 606 18 . 27 228 129 18 9 87 84 9 21 . . Effects 28 | . . . . . . . . 8 2 . . . . 3 . 3 . 2 3 . . 7 . . . . . Shutdowns 3 | . . . . . . . . . . . . . . 1 . . . . 1 . . 1 . . . . . Energy Bleed 6 | . . . . . . . . . . . . . . 1 . 2 . 2 1 . . . . . . . . Interference 17 | . . . . . . . . 8 2 . . . . . . 1 . . 1 . . 5 . . . . . Matter Decay 1 | . . . . . . . . . . . . . . 1 . . . . . . . . . . . . . Damage (minor) 1 | . . . . . . . . . . . . . . . . . . . . . . 1 . . . . . Siege Activations . | . . . . . . . . . . . . . . . . . . . . . . . . . . . . Martial Activations . | . . . . . . . . . . . . . . . . . . . . . . . . . . . . Shielding Activations . | . . . . . . . . . . . . . . . . . . . . . . . . . . . . Robots Disrupted 2 | . . . . . . . . . . . . . . . . . . . . . . . 2 . . . . Combat Hostiles . | . . . . . . . . . . . . . . . . . . . . . . . . . . . . Robots Corrupted 1 | . . . . . . . . . . . . . . . . . . . . . . . 1 . . . . Combat Hostiles . | . . . . . . . . . . . . . . . . . . . . . . . . . . . . Parts Fried 2 | . . . . . . . . . . . . . . . . . . . . . . . 2 . . . . Impact Corruptions . | . . . . . . . . . . . . . . . . . . . . . . . . . . . . Robots Melted . | . . . . . . . . . . . . . . . . . . . . . . . . . . . . Combat Hostiles . | . . . . . . . . . . . . . . . . . . . . . . . . . . . . Parts Melted 7 | . . . . . . 1 5 . . . . . . . . . . . 1 . . . . . . . . Heat Transferred 5826 | . . . . . . 407 2701 . 222 296 . 300 . 50 . . . 1550 . . . . 300 . . . . Parts Sabotaged 3 | . . . . . . . . . . . . . . 3 . . . . . . . . . . . . . Parts Stolen . | . . . . . . . . . . . . . . . . . . . . . . . . . . . . Parts Stripped . | . . . . . . . . . . . . . . . . . . . . . . . . . . . . Power Chain Reactions . | . . . . . . . . . . . . . . . . . . . . . . . . . . . . Alert | -11 -10 -10 -9 -9 -9 -8 -8 -8 -8 -8 -8 -6 -6 -6 -6 -6 -5 -5 -5 -5 -5 -5 -4 -4 -4 -4 -3 ------- Run | Yrd Mat Min Mat Min Exi Min Mat Sto Gar Rec Scr Fac Was Fac Low Dat Pro Fac Ext Cet Arc Hub Fac Upp Upp Zhi Pro Maximum Alert Level 5 | . . 1 3 1 . . 3 2 5 3 . 4 2 5 . . . 5 5 4 3 4 4 . . . . Low Security (%) 32 | 100 100 98 46 85 . 100 24 . . 20 . 47 . 10 . . . 38 . . . . . . . . . Level 1 9 | . . 1 6 14 . . 27 2 . 14 . 4 40 20 . . . . . . . 25 14 . . . . Level 2 25 | . . . 35 . . . 27 97 19 36 . 8 59 9 . . . 1 . . 15 15 55 . . . . Level 3 18 | . . . 11 . . . 20 . 23 28 . 35 . 22 . . . 16 50 . 84 58 29 . . . . Level 4 11 | . . . . . . . . . 43 . . 3 . 23 . . . 41 27 100 . . . . . . . Level 5 2 | . . . . . . . . . 13 . . . . 7 . . . 2 17 . . . . . . . . High Security . | . . . . . . . . . . . . . . 6 . . . . 5 . . . . . . . . Max Security . | . . . . . . . . . . . . . . . . . . . . . . . . . . . . Sterilizations 1 | . . . 1 . . . . . . . . . . . . . . . . . . . . . . . . Peak Influence 2087 | 10 92 208 863 270 . 75 893 690 1786 834 . 1272 444 1953 . . . 1618 2087 1309 758 1237 1194 . . . . Initial 1168 | . . 33 . 265 . . 15 376 434 803 . . 444 254 . . . 46 791 1168 507 258 592 . . . . Average 561 | 2 15 73 370 74 . 31 430 552 1134 523 . 471 406 885 . . . 736 1264 1264 719 663 598 . . . . Influence Increases 20947 | 35 320 367 1684 90 . 465 1473 1165 1412 222 . 1902 . 2464 145 . 140 2049 1830 371 351 1659 2542 61 115 15 70 Destroy 0b10 Robot/C 8900 | . 160 220 980 20 . 260 920 720 640 100 . 700 . 960 120 . 120 600 820 160 80 380 820 40 20 . 60 Destroy 0b10 Robot/NC 1925 | 35 65 20 210 70 . 135 215 150 . 70 . 250 . 225 5 . 10 105 85 10 45 40 155 5 5 15 . Destroy Leader 1804 | . 40 40 260 . . 40 204 204 40 . . 186 . 260 20 . 10 142 104 . . 94 140 10 . . 10 Allied During Kill 1441 | . . 4 . . . . . . . . . 11 . . . . . 16 613 170 125 496 . 6 . . . Trap Triggered on 0b10 30 | . . . . . . 30 . . . . . . . . . . . . . . . . . . . . . Successful Hack 579 | . 24 . 38 . . . 16 21 14 19 . 34 . 57 . . . 157 39 . . 65 95 . . . . Select Force Hacks 90 | . . . 60 . . . 30 . . . . . . . . . . . . . . . . . . . . Disable Machine 2070 | . . . 45 . . . 15 45 75 30 . 465 . 420 . . . 450 45 15 75 60 330 . . . . Anti-Garrison Action 850 | . . . . . . . . . 550 . . . . . . . . . . . . 300 . . . . . Destroy Structure 2238 | . 16 38 91 . . . 13 10 48 3 . 196 . 257 . . . 444 94 16 26 224 762 . . . . Partial Spotted 90 | . . . . . . . . . . . . 15 . 30 . . . 15 15 . . . 15 . . . . Lose Combat Pursuer 930 | . 15 45 . . . . 60 15 45 . . 45 . 255 . . . 120 15 . . . 225 . 90 . . Influence Decreases 20927 | 35 235 452 1001 773 . 425 622 1387 295 1876 132 633 905 875 833 1265 65 509 1358 1189 882 1188 2763 537 278 364 50 Entered New Map 9728 | . . 52 . 418 . . 25 515 235 983 132 . 825 110 723 1265 . 29 824 919 762 480 617 367 98 349 . Time Decay 7695 | 35 235 371 691 335 . 405 587 642 . 583 . 498 80 695 110 . 65 410 434 170 120 238 636 170 170 15 . Lost Part 810 | . . 10 10 20 . 20 10 80 60 10 . 50 . 70 . . . 50 20 20 . 30 290 . 10 . 50 Lost Ally 444 | . . 19 . . . . . . . . . 85 . . . . . 20 80 80 . 140 20 . . . . Purge Threat 2250 | . . . 300 . . . . 150 . 300 . . . . . . . . . . . 300 1200 . . . . Squads Dispatched 114 | . . . 9 . . . 10 8 . . . 14 . 29 . . . 20 4 . . 9 11 . . . . Investigation 33 | . . . 6 . . . 9 2 . . . 5 . 6 . . . 3 1 . . 1 . . . . . Extermination 13 | . . . . . . . . . . . . 3 . 4 . . . 2 . . . . 4 . . . . Reinforcement 25 | . . . 1 . . . 1 3 . . . 2 . 6 . . . 7 1 . . 2 2 . . . . Assault 23 | . . . 2 . . . . . . . . . . 11 . . . 4 2 . . 4 . . . . . Garrison 13 | . . . . . . . . 3 . . . 4 . 2 . . . 2 . . . 2 . . . . . Intercept 7 | . . . . . . . . . . . . . . . . . . 2 . . . . 5 . . . . Searches Triggered . | . . . . . . . . . . . . . . . . . . . . . . . . . . . . Construction Impeded 8 | . . . . . . . . 1 . . . 1 . 2 . . . 2 1 . . 1 . . . . . Haulers Reinforced 5 | . . . . . . . . . . . . 1 . 2 . . . 1 . . . . 1 . . . . Active Scanning Responses . | . . . . . . . . . . . . . . . . . . . . . . . . . . . . Cargo Convoy Interrupts 2 | . . . . . . . . . . . . 1 . 1 . . . . . . . . . . . . . Stealth | -11 -10 -10 -9 -9 -9 -8 -8 -8 -8 -8 -8 -6 -6 -6 -6 -6 -5 -5 -5 -5 -5 -5 -4 -4 -4 -4 -3 --------- Run | Yrd Mat Min Mat Min Exi Min Mat Sto Gar Rec Scr Fac Was Fac Low Dat Pro Fac Ext Cet Arc Hub Fac Upp Upp Zhi Pro Distress Signals 24 | . . . 1 . . . 2 4 . 1 . 4 . 2 . . . 4 2 2 . . 2 . . . . Communications Jammed . | . . . . . . . . . . . . . . . . . . . . . . . . . . . . Distress Signals . | . . . . . . . . . . . . . . . . . . . . . . . . . . . . Times Spotted 635 | . 14 14 63 14 . 16 58 50 33 5 . 53 . 69 8 5 7 48 45 8 8 27 69 3 13 . 5 Peak Tracking Total 11 | . 3 5 5 4 . 4 7 6 5 3 . 9 . 10 3 4 4 9 7 5 1 8 11 2 4 . 5 Tactical Retreats 34 | . 1 2 . . . . 3 1 1 . . 3 . 10 . . . 4 1 . . . 5 . 3 . . Traps | -11 -10 -10 -9 -9 -9 -8 -8 -8 -8 -8 -8 -6 -6 -6 -6 -6 -5 -5 -5 -5 -5 -5 -4 -4 -4 -4 -3 ------- Run | Yrd Mat Min Mat Min Exi Min Mat Sto Gar Rec Scr Fac Was Fac Low Dat Pro Fac Ext Cet Arc Hub Fac Upp Upp Zhi Pro Traps Triggered 33 | . 3 . 3 1 . . 3 1 4 . . 4 . 5 . . . . 2 . . 1 6 . . . . Indirectly 3 | . . . . . . . . . . . . . . . . . . . . . . . 3 . . . . Trap Hack Attempts . | . . . . . . . . . . . . . . . . . . . . . . . . . . . . Triggered . | . . . . . . . . . . . . . . . . . . . . . . . . . . . . Disarmed . | . . . . . . . . . . . . . . . . . . . . . . . . . . . . Reprogrammed . | . . . . . . . . . . . . . . . . . . . . . . . . . . . . Reused 8 | . . . . . . 3 . . . . . . . . 1 . . . . . . . . . 4 . . Traps Extracted . | . . . . . . . . . . . . . . . . . . . . . . . . . . . . Installed 8 | . . . . . . 3 . . . . . . . . 1 . . . . . . . . . 4 . . Triggered 7 | . . . . . . 3 . . . . . . . . . . . . . . . . . . 4 . . Most Traps Carried 6 | . . . . 3 3 3 . . . . . . . . . . . . . . . . . 6 4 . . Machines | -11 -10 -10 -9 -9 -9 -8 -8 -8 -8 -8 -8 -6 -6 -6 -6 -6 -5 -5 -5 -5 -5 -5 -4 -4 -4 -4 -3 ---------- Run | Yrd Mat Min Mat Min Exi Min Mat Sto Gar Rec Scr Fac Was Fac Low Dat Pro Fac Ext Cet Arc Hub Fac Upp Upp Zhi Pro Machines Disabled 150 | . . . 3 . . . 1 3 10 2 . 31 . 28 . . . 30 7 1 5 6 22 . . 1 . Max in Single Turn 15 | . . . 2 . . . 1 1 1 1 . 13 . 6 . . . 15 1 1 2 1 3 . . 1 . Garrison Access 10 | . . . . . . . . . . . . 2 . 2 . . . 2 . . . 2 2 . . . . Garrison Relay 5 | . . . . . . . . . 5 . . . . . . . . . . . . . . . . . . Network Hub 1 | . . . . . . . . . . . . . . . . . . . . . . 1 . . . . . Machines Repaired . | . . . . . . . . . . . . . . . . . . . . . . . . . . . . Machines Dismantled 3 | . . . . . . . . . . . . . . . . . . . 2 1 . . . . . . . Machines Sabotaged . | . . . . . . . . . . . . . . . . . . . . . . . . . . . . Overloaded Fab Kills . | . . . . . . . . . . . . . . . . . . . . . . . . . . . . Hacking | -11 -10 -10 -9 -9 -9 -8 -8 -8 -8 -8 -8 -6 -6 -6 -6 -6 -5 -5 -5 -5 -5 -5 -4 -4 -4 -4 -3 --------- Run | Yrd Mat Min Mat Min Exi Min Mat Sto Gar Rec Scr Fac Was Fac Low Dat Pro Fac Ext Cet Arc Hub Fac Upp Upp Zhi Pro Machines Accessed 163 | . 4 1 15 1 2 . 11 11 2 9 1 13 . 25 1 4 . 21 14 2 . 6 15 . 1 4 . Terminals 81 | . 4 . 11 . . . 7 9 2 6 . 2 . 8 . . . 8 12 2 . 4 6 . . . . Fabricators 11 | . . . . . . . . . . . . 2 . 5 . . . 4 . . . . . . . . . Repair Stations 14 | . . . . . . . 1 1 . . . 2 . 4 . . . 4 . . . . 2 . . . . Recycling Units 17 | . . . 2 . . . 1 . . 2 . 2 . 4 . . . 1 2 . . . 3 . . . . Scanalyzers 11 | . . . 2 . . . 1 . . . . 3 . 1 . . . 2 . . . . 2 . . . . Garrison Access 13 | . . . . . . . 1 1 . . . 2 . 3 . . . 2 . . . 2 2 . . . . Total Hacks 492 | . 13 1 59 1 4 . 29 28 4 30 9 36 . 66 1 31 . 55 39 4 . 14 54 . 1 13 . Successful 278 | . 6 1 39 1 4 . 15 17 1 17 9 15 . 31 1 31 . 35 12 1 . 9 19 . 1 13 . Failed 212 | . 7 . 19 . . . 14 11 3 12 . 21 . 35 . . . 20 27 3 . 5 35 . . . . Catastrophic 42 | . . . 2 . . . 1 . 2 5 . 6 . 13 . . . 5 3 . . 1 4 . . . . Database Lockouts 2 | . . . 1 . . . . . . 1 . . . . . . . . . . . . . . . . . Manual 151 | . 13 . 36 . 1 . 17 9 . 10 . 1 . 7 . . . 4 23 1 . 5 24 . . . . Terminals 244 | . 13 . 46 . . . 20 24 4 20 . 6 . 18 . . . 11 36 4 . 11 31 . . . . Fabricators 35 | . . . . . . . . . . . . 7 . 16 . . . 12 . . . . . . . . . Repair Stations 52 | . . . . . . . 4 3 . . . 5 . 17 . . . 13 . . . . 10 . . . . Recycling Units 36 | . . . 2 . . . 1 . . 5 . 7 . 8 . . . 3 3 . . . 7 . . . . Scanalyzers 42 | . . . 11 . . . 3 . . . . 9 . 2 . . . 13 . . . . 4 . . . . Garrison Access 17 | . . . . . . . 1 1 . . . 2 . 5 . . . 3 . . . 3 2 . . . . Terminal Hacks 135 | . 3 1 17 1 4 . 3 12 1 12 9 3 . 4 1 31 . 4 6 1 . 5 3 . 1 13 . Record 35 | . . . . . 3 . . 1 . 5 9 . . . . 11 . . . 1 . . . . . 5 . Part Schematic 18 | . . . . . . . . . . 1 . . . . . 10 . . 1 . . 2 . . . 4 . Robot Schematic 9 | . . . . . . . . 1 . 1 . . . . . 7 . . . . . . . . . . . Robot Analysis 13 | . 3 . 5 . . . 1 3 . 1 . . . . . . . . . . . . . . . . . Prototype ID Bank 17 | . . . 2 . . . 1 1 . 1 . 1 . 1 . 3 . 1 1 . . . 1 . . 4 . Open Door 12 | . . 1 . 1 . . . 3 . . . . . . 1 . . 1 4 . . . . . 1 . . Level Access Points 1 | . . . . . . . . . . . . . . . . . . . . . . 1 . . . . . Branch Access Points 4 | . . . 1 . . . . . . . . 1 . . . . . 1 . . . . 1 . . . . Terminal Index 4 | . . . 1 . . . 1 1 . . . . . 1 . . . . . . . . . . . . . Recycling Unit Index 1 | . . . 1 . . . . . . . . . . . . . . . . . . . . . . . . Alert Level 2 | . . . 1 . . . . . . 1 . . . . . . . . . . . . . . . . . Unreport Threat 7 | . . . 2 . . . . 1 . 2 . . . . . . . . . . . 2 . . . . . Locate Traps 2 | . . . 1 . . . . . . . . . . 1 . . . . . . . . . . . . . Investigation Status 1 | . . . . . . . . . . . . . . 1 . . . . . . . . . . . . . Recall Investigation 1 | . . . . . . . . . . . . 1 . . . . . . . . . . . . . . . Recall Extermination 1 | . . . . . . . . . . . . . . . . . . . . . . . 1 . . . . Recall Reinforcements 1 | . . . 1 . . . . . . . . . . . . . . . . . . . . . . . . Hauler Manifests 1 | . . . 1 . . . . . . . . . . . . . . . . . . . . . . . . Zone Layout 3 | . . . 1 . . . . 1 . . . . . . . . . 1 . . . . . . . . . Patrol Navigation 1 | . . . . . . . . . 1 . . . . . . . . . . . . . . . . . . Proto ID Catalog 1 | . . . . . 1 . . . . . . . . . . . . . . . . . . . . . . Fabricator Hacks 16 | . . . . . . . . . . . . 3 . 6 . . . 7 . . . . . . . . . Network Status 4 | . . . . . . . . . . . . 1 . 1 . . . 2 . . . . . . . . . Load Schematic 8 | . . . . . . . . . . . . 2 . 3 . . . 3 . . . . . . . . . Build 4 | . . . . . . . . . . . . . . 2 . . . 2 . . . . . . . . . Repair Station Hacks 31 | . . . . . . . 4 1 . . . 2 . 12 . . . 9 . . . . 3 . . . . Scan Component 18 | . . . . . . . 2 1 . . . 1 . 7 . . . 5 . . . . 2 . . . . Repair 13 | . . . . . . . 2 . . . . 1 . 5 . . . 4 . . . . 1 . . . . Recycling Unit Hacks 16 | . . . . . . . . . . 2 . 2 . 3 . . . 3 1 . . . 5 . . . . Process 4 | . . . . . . . . . . . . 1 . . . . . 2 . . . . 1 . . . . Report Inventory 5 | . . . . . . . . . . 2 . 1 . 1 . . . . . . . . 1 . . . . Retrieve Matter 3 | . . . . . . . . . . . . . . . . . . 1 . . . . 2 . . . . Retrieve Components 4 | . . . . . . . . . . . . . . 2 . . . . 1 . . . 1 . . . . Scanalyzer 26 | . . . 11 . . . 3 . . . . 3 . 1 . . . 8 . . . . . . . . . Insert Component 14 | . . . 6 . . . 1 . . . . 2 . 1 . . . 4 . . . . . . . . . Analyze 12 | . . . 5 . . . 2 . . . . 1 . . . . . 4 . . . . . . . . . Garrison Access Hacks 12 | . . . . . . . 1 1 . . . 2 . 2 . . . 2 . . . 2 2 . . . . Unlock Access 4 | . . . . . . . 1 1 . . . . . . . . . . . . . 2 . . . . . Seal Access 8 | . . . . . . . . . . . . 2 . 2 . . . 2 . . . . 2 . . . . Unauthorized Hacks 42 | . 3 . 11 . . . 4 3 . 3 . . . 3 . . . 2 5 . . 2 6 . . . . Terminals 38 | . 3 . 9 . . . 3 3 . 3 . . . 2 . . . 2 5 . . 2 6 . . . . Assimilate 3 | . . . . . . . . . . . . . . . . . . . . . . 1 2 . . . . Botnet 35 | . 3 . 9 . . . 3 3 . 3 . . . 2 . . . 2 5 . . 1 4 . . . . Fabricators . | . . . . . . . . . . . . . . . . . . . . . . . . . . . . Repair Stations . | . . . . . . . . . . . . . . . . . . . . . . . . . . . . Recycling Units 4 | . . . 2 . . . 1 . . . . . . 1 . . . . . . . . . . . . . Recyclers 1 | . . . . . . . . . . . . . . 1 . . . . . . . . . . . . . Tunnel 3 | . . . 2 . . . 1 . . . . . . . . . . . . . . . . . . . . Scanalyzers . | . . . . . . . . . . . . . . . . . . . . . . . . . . . . Garrison Access . | . . . . . . . . . . . . . . . . . . . . . . . . . . . . Data Cores Recovered 2 | . . . 1 . . . . . . . . 1 . . . . . . . . . . . . . . . Used 1 | . . . . . . . . . . . . 1 . . . . . . . . . . . . . . . Hacking Detections 117 | . 3 . 13 . . . 9 7 2 7 . 11 . 21 . . . 16 12 1 . 6 9 . . . . Full Trace Events 27 | . 1 . 4 . . . 5 1 2 1 . 5 . 4 . . . 3 . . . 1 . . . . . Feedback Events . | . . . . . . . . . . . . . . . . . . . . . . . . . . . . Feedback Blocked . | . . . . . . . . . . . . . . . . . . . . . . . . . . . . Robot Schematics Acquired 9 | . . . . . . . . 1 . 1 . . . . . 7 . . . . . . . . . . . Robots Built 2 | . . . . . . . . . . . . . . . . . . 2 . . . . . . . . . Authchips . | . . . . . . . . . . . . . . . . . . . . . . . . . . . . Time 187 | . . . . . . . . . . . . . . . . . . 187 . . . . . . . . . Total Robot Build Rating 14 | . . . . . . . . . . . . . . . . . . 14 . . . . . . . . . Part Schematics Acquired 26 | . . . 5 . . . 1 . . 1 . 1 . . . 10 . 1 1 . . 2 . . . 4 . Parts Built 4 | . . . . . . . . . . . . . . 4 . . . . . . . . . . . . . Authchips . | . . . . . . . . . . . . . . . . . . . . . . . . . . . . Time 313 | . . . . . . . . . . . . . . 179 . . . 134 . . . . . . . . . Total Part Build Rating 18 | . . . . . . . . . . . . . . 18 . . . . . . . . . . . . . Parts Repaired 13 | . . . . . . . 2 . . . . 1 . 5 . . . 4 . . . . 1 . . . . Time 737 | . . . . . . . 64 . . . . 44 . 307 . . . 278 . . . . 44 . . . . Parts Recycled . | . . . . . . . . . . . . . . . . . . . . . . . . . . . . Recycled Matter 774 | . . . . . . . . . . . . 614 . . . . . 30 . . . . 130 . . . . Retrieved Matter 160 | . . . . . . . . . . . . . . . . . . 30 . . . . 130 . . . . Retrieved Components 20 | . . . . . . . . . . . . . . 12 . . . . 6 . . . 2 . . . . Parts Scanalyzed 10 | . . . 5 . . . 1 . . . . 1 . 1 . . . 2 . . . . . . . . . Part Schematics Acquired 8 | . . . 5 . . . 1 . . . . 1 . . . . . 1 . . . . . . . . . Parts Damaged 3 | . . . . . . . . . . . . 1 . 1 . . . 1 . . . . . . . . . Bothacking | -11 -10 -10 -9 -9 -9 -8 -8 -8 -8 -8 -8 -6 -6 -6 -6 -6 -5 -5 -5 -5 -5 -5 -4 -4 -4 -4 -3 ------------ Run | Yrd Mat Min Mat Min Exi Min Mat Sto Gar Rec Scr Fac Was Fac Low Dat Pro Fac Ext Cet Arc Hub Fac Upp Upp Zhi Pro Used RIF Installer . | . . . . . . . . . . . . . . . . . . . . . . . . . . . . Robots Hacked . | . . . . . . . . . . . . . . . . . . . . . . . . . . . . Non-combat . | . . . . . . . . . . . . . . . . . . . . . . . . . . . . Combat . | . . . . . . . . . . . . . . . . . . . . . . . . . . . . Robot Hacks Applied . | . . . . . . . . . . . . . . . . . . . . . . . . . . . . Relay Couplers Released 30 | . . . . . . . . . 28 . . . . . . . . . . . . 2 . . . . . Machine Destruction 26 | . . . . . . . . . 24 . . . . . . . . . . . . 2 . . . . . Programmers 4 | . . . . . . . . . 4 . . . . . . . . . . . . . . . . . . Fabnet Peak Effective % . | . . . . . . . . . . . . . . . . . . . . . . . . . . . . Robots Rewired 21 | . . . . . . . . . . 8 . . . . . . . . 13 . . . . . . . . Allies Hacked . | . . . . . . . . . . . . . . . . . . . . . . . . . . . . Hacks Repelled 1 | . . . . . . . . . . . . . . . . . . . . . . . 1 . . . . Allies | -11 -10 -10 -9 -9 -9 -8 -8 -8 -8 -8 -8 -6 -6 -6 -6 -6 -5 -5 -5 -5 -5 -5 -4 -4 -4 -4 -3 -------- Run | Yrd Mat Min Mat Min Exi Min Mat Sto Gar Rec Scr Fac Was Fac Low Dat Pro Fac Ext Cet Arc Hub Fac Upp Upp Zhi Pro Total Allies 39 | . . 1 . . . . . . . 8 . . . . . . . 2 20 5 . . 2 1 . . . Largest Group 17 | . . 1 . . . . . . . 8 8 8 . . . . . 2 17 17 14 12 1 1 . . . Highest-Rated Group 918 | . . 31 . . . . . . . 112 112 112 . . . . . 112 597 918 772 578 26 106 . . . Highest-Rated Ally 159 | . . 31 . . . . . . . 16 16 16 . . . . . 56 159 159 159 96 26 106 . . . Initial Warlord ECA Mod 110 | . . . . . . . . . . 11 11 9 9 9 9 9 8 8 5 5 5 5 4 1 1 1 . Warlord Squad Rendezvous 6 | . . . . . . . . . . . . . . . . . . 3 . . . . 3 . . . . Dakka 1 | . . . . . . . . . . . . . . . . . . . . . . . 1 . . . . Infantry 1 | . . . . . . . . . . . . . . . . . . . . . . . 1 . . . . Geek 2 | . . . . . . . . . . . . . . . . . . 1 . . . . 1 . . . . Pyro 2 | . . . . . . . . . . . . . . . . . . 2 . . . . . . . . . Total Orders 24 | . . . . . . . . . . . . . . . . . . 3 6 . 2 13 . . . . . STAY 11 | . . . . . . . . . . . . . . . . . . 2 2 . 1 6 . . . . . FOLLOW 12 | . . . . . . . . . . . . . . . . . . 1 4 . 1 6 . . . . . AID 1 | . . . . . . . . . . . . . . . . . . . . . . 1 . . . . . Ally Attacks 401 | . . 14 . . . . . . . . . 27 . . . . . 14 153 31 17 133 . 12 . . . Total Damage 10336 | . . 168 . . . . . . . . . 421 . . . . . 812 2976 735 647 4274 . 303 . . . Kills 54 | . . 3 . . . . . . . . . 1 . . . . . 2 22 2 3 19 . 2 . . . Allies Corrupted 2 | . . . . . . . . . . . . 2 . . . . . . . . . . . . . . . Allies Melted . | . . . . . . . . . . . . . . . . . . . . . . . . . . . . Intel | -11 -10 -10 -9 -9 -9 -8 -8 -8 -8 -8 -8 -6 -6 -6 -6 -6 -5 -5 -5 -5 -5 -5 -4 -4 -4 -4 -3 ------- Run | Yrd Mat Min Mat Min Exi Min Mat Sto Gar Rec Scr Fac Was Fac Low Dat Pro Fac Ext Cet Arc Hub Fac Upp Upp Zhi Pro Active Infowar (turns) 5783 | 102 168 . . . . . . . . . . . . . . . 62 1736 1122 358 259 502 1474 . . . . IFF 62 | . . . . . . . . . . . . . . . . . 62 . . . . . . . . . . Terrain 818 | 102 168 . . . . . . . . . . . . . . . . 448 . . . . 100 . . . . Decoding 5350 | . . . . . . . . . . . . . . . . . . 1736 1122 358 259 502 1373 . . . . Jamming 1 | . . . . . . . . . . . . . . . . . . . . . . . 1 . . . . Robot Analysis Total 164 | . 3 . 5 . . . 1 3 . 1 . . . . . 151 . . . . . . . . . . . Derelict Logs Recovered 7 | . . 1 . 2 . . . . . . . . . . . . 2 . . . . . . . 2 . . Drone Launches 5 | . . . . . . . . . . . . 5 . . . . . . . . . . . . . . . Drone Recoveries 2 | . . . . . . . . . . . . 2 . . . . . . . . . . . . . . . Decoded 0b10 Intel 258 | . . . . . . . . . . . . . . . . . . 103 31 5 . 32 87 . . . . Items 258 | . . . . . . . . . . . . . . . . . . 103 31 5 . 32 87 . . . . Exploration | -11 -10 -10 -9 -9 -9 -8 -8 -8 -8 -8 -8 -6 -6 -6 -6 -6 -5 -5 -5 -5 -5 -5 -4 -4 -4 -4 -3 ------------- Run | Yrd Mat Min Mat Min Exi Min Mat Sto Gar Rec Scr Fac Was Fac Low Dat Pro Fac Ext Cet Arc Hub Fac Upp Upp Zhi Pro Turns Passed 30525 | 150 1077 1118 2809 1311 552 1289 2163 2313 1931 1808 1090 1701 168 3096 226 114 349 1737 1136 358 259 502 2251 351 352 222 92 Spaces Moved 23403 | 59 544 623 1198 694 322 629 946 1007 1007 889 668 1750 263 3606 420 141 389 1731 934 255 221 522 2993 524 617 340 111 Core 7 | 7 . . . . . . . . . . . . . . . . . . . . . . . . . . . Treads 8594 | 52 544 623 1198 694 322 629 946 1007 1007 889 668 15 . . . . . . . . . . . . . . . Legs . | . . . . . . . . . . . . . . . . . . . . . . . . . . . . Wheels . | . . . . . . . . . . . . . . . . . . . . . . . . . . . . Hover 14802 | . . . . . . . . . . . . 1735 263 3606 420 141 389 1731 934 255 221 522 2993 524 617 340 111 Flight . | . . . . . . . . . . . . . . . . . . . . . . . . . . . . Fastest Speed 25 | 50 160 160 160 170 170 170 163 163 160 160 160 44 48 40 25 40 42 42 41 46 46 46 36 48 48 43 43 Average Speed 92 | 146 160 160 183 170 170 170 168 171 161 178 160 54 48 46 38 43 45 46 48 48 48 46 45 48 48 45 43 Slowest Speed 250 | 160 160 160 250 170 170 170 250 243 243 240 160 160 50 101 40 220 48 115 108 55 106 115 115 48 48 89 43 Overloaded Moves 235 | . . . . . . . . . . . . 2 . . 44 . . . 33 . . . 156 . . . . Propulsion Burnouts . | . . . . . . . . . . . . . . . . . . . . . . . . . . . . Robots Hopped . | . . . . . . . . . . . . . . . . . . . . . . . . . . . . Potential Cave-ins 2 | . . . . . . . . . . . . . . . . . . . . . . . . . . . 2 Cave-ins Triggered . | . . . . . . . . . . . . . . . . . . . . . . . . . . . . Time Travels 1 | . . . . . 1 . . . . . . . . . . . . . . . . . . . . . . Exploration Rate (%) 67 | 4 79 91 91 90 77 95 53 86 89 99 54 36 94 67 50 77 52 33 86 79 88 39 53 60 75 60 26 Regions Visited 27 Branch Regions 18 Pre-discovered Areas 31 | . . 1 2 . 1 . 1 . . . . . . . 1 22 . . . . . . . . . 3 . Known Exits Taken 8 | . . . 1 . . . 1 1 . . . . . 1 . . 1 1 . . . 1 1 . . . . Unknown Exits Taken 16 | 1 1 1 . 1 1 1 . . . 1 1 . . . 1 1 . . 1 1 1 . . 1 1 1 . Scrap Searched 15 | . . 1 . . . 1 . . . . 6 . . . 2 . 2 . . . . . . 3 . . . Spaces Dug 142 | . . . . . . . . . . . . . . 21 . . 33 35 3 . . 5 37 . 4 . 4 Terrain Destroyed 1988 | . 20 53 95 . . . 6 . 34 . . 227 . 314 17 42 76 350 47 5 26 192 440 10 12 . 22 Melee . | . . . . . . . . . . . . . . . . . . . . . . . . . . . . Projectile 429 | . . . . . . . 6 . . . . 10 . 87 4 1 9 47 16 5 26 22 152 10 12 . 22 AOE 1544 | . 20 53 95 . . . . . 34 . . 217 . 224 13 41 67 298 25 . . 170 287 . . . . Terrain Rammed . | . . . . . . . . . . . . . . . . . . . . . . . . . . . . Walls Destroyed . | . . . . . . . . . . . . . . . . . . . . . . . . . . . . Machines Disabled . | . . . . . . . . . . . . . . . . . . . . . . . . . . . . Actions | -11 -10 -10 -9 -9 -9 -8 -8 -8 -8 -8 -8 -6 -6 -6 -6 -6 -5 -5 -5 -5 -5 -5 -4 -4 -4 -4 -3 --------- Run | Yrd Mat Min Mat Min Exi Min Mat Sto Gar Rec Scr Fac Was Fac Low Dat Pro Fac Ext Cet Arc Hub Fac Upp Upp Zhi Pro Total 29394 | 85 647 681 1519 752 327 718 1268 1324 1192 1056 690 2187 306 4647 464 171 540 2470 1419 450 324 734 3641 596 661 392 133 Wait 3056 | . 9 4 99 10 . 3 119 100 55 39 9 124 13 722 18 . 118 539 242 161 63 175 376 29 28 . 1 Move 23377 | 58 543 622 1197 693 321 628 945 1006 1006 888 667 1750 262 3605 419 140 388 1730 933 254 220 521 2992 523 616 339 111 Hop . | . . . . . . . . . . . . . . . . . . . . . . . . . . . . Pick Up 288 | 1 20 5 18 5 1 8 24 18 10 3 4 34 8 34 3 1 6 23 7 2 3 4 27 12 . 7 . Fast Attach 126 | 7 . 1 2 1 1 . 7 2 7 2 . 6 2 18 2 9 3 11 3 1 2 4 17 8 . 10 . Attach 121 | . . . 4 3 . 5 5 10 4 1 1 18 . 10 3 1 6 12 1 1 . 5 19 3 . 3 6 Detach 61 | . . . . . . 1 2 3 4 1 . 9 1 7 . 1 2 9 . . 1 3 10 1 . 6 . Swap 447 | . 6 5 31 4 1 4 24 28 23 10 4 78 10 66 9 2 4 41 18 9 9 3 58 . . . . Drop 374 | . 9 5 30 6 3 10 32 26 16 8 5 47 10 38 3 10 3 26 14 4 8 2 38 7 4 10 . Fire 1303 | 19 60 37 138 30 . 55 110 130 67 25 . 120 . 147 6 6 10 79 65 10 18 17 100 13 9 17 15 Melee . | . . . . . . . . . . . . . . . . . . . . . . . . . . . . Ram 3 | . . . . . . . . . . . . 1 . . . 1 . . . . . . 1 . . . . Kick . | . . . . . . . . . . . . . . . . . . . . . . . . . . . . Crush 4 | . . 2 . . . 1 . 1 . . . . . . . . . . . . . . . . . . . Escape Stasis 8 | . . . . . . . . . . . . . . . . . . . 8 . . . . . . . . Rewire 194 | . . . . . . . . . . 79 . . . . . . . . 112 . . . 3 . . . . Trap 8 | . . . . . . 3 . . . . . . . . 1 . . . . . . . . . 4 . . Miscellaneous 24 | . . . . . . . . . . . . . . . . . . . 16 8 . . . . . . . Route ------- -11/Scrapyard -10/Materials (discovered 4 exits: *Mat x2 / *Min x2) -10/Mines (discovered 2 exits: *Mat / [*Sub]) -9/Materials (discovered 4 exits: *Mat x2 / *Min x2) -9/Mines (discovered 3 exits: *Mat x2 / *Exi) -9/Exiles -8/Mines (discovered 2 exits: *Mat x2) -8/Materials (discovered 3 exits: [*Fac] / *Sto / Gar) -8/Storage (discovered 3 exits: [*Fac] / *Rec / Gar) -8/Garrison (discovered 3 exits: *Rec x3) -8/Recycling (discovered 2 exits: *Fac / *Scr) -8/Scraptown -6/Factory (discovered 2 exits: *Low x2) -6/Waste -6/Factory (discovered 2 exits: *Fac / *Low) -6/Lower Caves -6/Data Miner -5/Proximity Caves -5/Factory (discovered 4 exits: Upp x2 / *Ext x2) -5/Extension (discovered 2 exits: *Fac / *Cet) -5/Cetus (discovered 2 exits: *Fac / *Arc) -5/Archives (discovered 3 exits: *Fac / *Hub x2) -5/Hub_04(d) (discovered 4 exits: *Fac x4) -4/Factory (discovered 5 exits: [*Res x3] / *Upp x2) -4/Upper Caves (discovered 2 exits: *Upp / [*Res]) -4/Upper Caves (discovered 2 exits: [*Res] / *Zhi) -4/Zhirov -3/Proximity Caves History --------- Turn | Location | Event 7 | -11/Scrapyard | Discovered new exit (range 15) 151 | -11/Scrapyard | Entered Materials 235 | -10/Materials | Discovered new exit (range 6) 313 | -10/Materials | Build established: Mutant 429 | -10/Materials | Discovered new exit (range 15) 957 | -10/Materials | Discovered new exit (range 15) 1075 | -10/Materials | Discovered new exit (range 16) 1228 | -10/Materials | Entered Mines 1240 | -10/Mines | Received a Rocket Launcher from a helpful Derelict 1302 | -10/Mines | Met a Derelict bent on vengeance 1303 | -10/Mines | Received a Mining Laser from a helpful Derelict 1394 | -10/Mines | Discovered new exit (range 8) 1769 | -10/Mines | A weapon hastily lodged in a ceiling crevice suddenly fell to the ground 1918 | -10/Mines | Discovered new exit (range 8) 2058 | -10/Mines | Found the Drone Emporium 2070 | -10/Mines | Found Prototype Device 2070 | -10/Mines | Identified Thief Drone Bay 2346 | -10/Mines | Entered Materials 2346 | -9/Materials | Evolved 2 slots: Weapon x2 2643 | -9/Materials | Build established: Tank 2804 | -9/Materials | Discovered new exit (range 15) 3378 | -9/Materials | Central database locked down 3378 | -9/Materials | Identified exit to Mines 3550 | -9/Materials | Build established: Gunner 3852 | -9/Materials | Destroyed 8 combat bots 3946 | -9/Materials | First assault squad dispatched 3950 | -9/Materials | Discovered new exit (range 14) 4148 | -9/Materials | Build established: Tank 5041 | -9/Materials | Sterilization system engaged 5041 | -9/Materials | Non-combat units ordered to evacuate 5141 | -9/Materials | Combat units ordered to evacuate 5155 | -9/Materials | Entered Mines 5273 | -9/Mines | Discovered new exit (range 8) 5283 | -9/Mines | Learned Materials emergency access door positions 5290 | -9/Mines | Found a hidden stash of uninstalled traps 5335 | -9/Mines | Core integrity fell below 50% 5339 | -9/Mines | Destroyed YI-UF0 5388 | -9/Mines | Assembled infested the area 6272 | -9/Mines | Discovered new exit (range 9) 6291 | -9/Mines | Met a Derelict who couldn't figure out how to use a Trap Extractor 6459 | -9/Mines | Deemed a non-threat by the Exiles lab entrance 6459 | -9/Mines | Discovered new exit (range 5) 6466 | -9/Mines | Entered Exiles 6507 | -9/Exiles | Met 8R-AWN 6536 | -9/Exiles | Met EX-HEX 6599 | -9/Exiles | Met EX-DEC 6636 | -9/Exiles | Visited The Gauntlet 6728 | -9/Exiles | Learned location of Zion (-7) 6761 | -9/Exiles | Met EX-BIN 6784 | -9/Exiles | Aligned with FarCom system 6786 | -9/Exiles | Given EX-Vault access code 6827 | -9/Exiles | Opened EX-Vault 6841 | -9/Exiles | Found Chronowheel 6841 | -9/Exiles | Activated Chronowheel 6841 | -9/Exiles | Spacetime reconverged on an earlier point 6857 | -9/Exiles | Found AWS/Thermal 6890 | -9/Exiles | Warned to stay clear of 0b10 Research branches 7001 | -9/Exiles | Discovered new exit (range 10) 7018 | -9/Exiles | Left Exiles lab with AWS/Thermal 7018 | -9/Exiles | Entered Mines 7037 | -8/Mines | Core integrity fell below 20% 7179 | -8/Mines | Discovered new exit (range 10) 7311 | -8/Mines | Build established: Skirmisher 7783 | -8/Mines | Discovered new exit (range 7) 7930 | -8/Mines | Build established: Scavenger-Skirmisher 8307 | -8/Mines | Entered Materials 8307 | -8/Materials | Evolved 2 slots: Propulsion x1, Weapon x1 8308 | -8/Materials | Identified exit to Storage 8352 | -8/Materials | Identified exit to Garrison 8560 | -8/Materials | Destroyed 7 combat bots 8736 | -8/Materials | Discovered new exit (range 3) 9460 | -8/Materials | AWS/Thermal suddenly broke down 9496 | -8/Materials | Destroyed 9 combat bots 9808 | -8/Materials | Repaired Arm. Treads 9835 | -8/Materials | Repaired Lgt. Armor Plating 10470 | -8/Materials | Entered Storage 11431 | -8/Storage | Discovered new exit (range 7) 11557 | -8/Storage | Identified exit to Garrison 11648 | -8/Storage | Met 01-MTF 11673 | -8/Storage | Discovered new exit (range 5) 11728 | -8/Storage | Garrison activated, responded to threat 11845 | -8/Storage | Garrison activated, responded to threat 11887 | -8/Storage | Core integrity fell below 50% 11914 | -8/Storage | Destroyed 01-MTF 11941 | -8/Storage | Lost 4 parts (4w) 12078 | -8/Storage | Garrison activated, responded to threat 12783 | -8/Storage | Entered Garrison 12833 | -8/Garrison | Triggered checkpoint 12878 | -8/Garrison | Garrison Relay disabled 12966 | -8/Garrison | Triggered checkpoint 13077 | -8/Garrison | Discovered new exit (range 10) 13329 | -8/Garrison | Triggered checkpoint 13329 | -8/Garrison | Triggered checkpoint 13369 | -8/Garrison | Destroyed 7 combat bots 13525 | -8/Garrison | Discovered new exit (range 13) 13589 | -8/Garrison | Triggered checkpoint 13593 | -8/Garrison | Core integrity fell below 20% 13616 | -8/Garrison | Garrison Relay disabled 13883 | -8/Garrison | Discovered new exit (range 12) 13963 | -8/Garrison | Triggered checkpoint 13988 | -8/Garrison | Garrison Relay disabled 13998 | -8/Garrison | Garrison Relay disabled 14383 | -8/Garrison | Triggered checkpoint 14452 | -8/Garrison | Garrison Relay disabled 14714 | -8/Garrison | Entered Recycling 15203 | -8/Recycling | Discovered new exit (range 16) 16471 | -8/Recycling | Scanned before Scraplab entrance 16494 | -8/Recycling | Entered Scraplab 16506 | -8/Recycling | Discovered new exit (range 3) 16522 | -8/Recycling | Entered Scraptown 16522 | -8/Scraptown | Accompanied by 8 allies 16522 | -8/Scraptown | System corruption cleaned by C-Scrubber 16546 | -8/Scraptown | Heard Great Nut preacher, LISTEN AND RECITE! 16870 | -8/Scraptown | Discovered new exit (range 13) 16936 | -8/Scraptown | Visited IN-MT5's Study 16958 | -8/Scraptown | Visited Bundlers 17019 | -8/Scraptown | Build established: Commander-Tank 17091 | -8/Scraptown | Visited Assassins FH 17105 | -8/Scraptown | Visited Science Testing Area 17348 | -8/Scraptown | Turned away by UFD registrar 17376 | -8/Scraptown | Visited The Evicted 17385 | -8/Scraptown | Visited Junk Repository 17612 | -8/Scraptown | Entered Factory 17612 | -6/Factory | Accompanied by 8 allies 17612 | -6/Factory | Evolved 4 slots: Propulsion x2, Utility x2 17731 | -6/Factory | Spotted B-75 Beast 17756 | -6/Factory | Destroyed B-75 Beast 17782 | -6/Factory | Lost 5 allies 17907 | -6/Factory | Identified exit to Lower Caves 18128 | -6/Factory | Build established: Scavenger-Skirmisher 18505 | -6/Factory | Found Prototype Launcher 18505 | -6/Factory | Identified Scatter Rocket Array 18512 | -6/Factory | Garrison activated, responded to threat 18798 | -6/Factory | Repaired Broken Cld. Airjet 19063 | -6/Factory | Cargo convoy interrupted 19203 | -6/Factory | Found PL-3XN's Ring of Power 19291 | -6/Factory | Garrison activated, responded to threat 19313 | -6/Factory | Sucked down chute 19313 | -6/Factory | Entered Waste 19313 | -6/Waste | The area was eerily silent 19466 | -6/Waste | Discovered new exit (range 11) 19481 | -6/Waste | Entered Factory 19494 | -6/Factory | Build established: Skirmisher 19800 | -6/Factory | Repaired Broken Hyp. Railgun 19804 | -6/Factory | Garrison activated, responded to threat 19840 | -6/Factory | Repaired Imp. Propulsion Shielding? 19993 | -6/Factory | Fabricated Recoil Stabilizer? 20267 | -6/Factory | Repaired Broken Coil Gun? 20369 | -6/Factory | Repaired Broken Coil Gun? 20778 | -6/Factory | Build established: Scavenger-Skirmisher 20973 | -6/Factory | Discovered new exit (range 5) 20977 | -6/Factory | Identified exit to Factory 21094 | -6/Factory | Discovered exit to Lower Caves (range 5) 21165 | -6/Factory | Lost 3 parts (2n1w) 21407 | -6/Factory | Repaired Hyp. Railgun? 21463 | -6/Factory | Garrison activated, responded to threat 21581 | -6/Factory | First assault squad dispatched 21592 | -6/Factory | Build established: Gunner 21690 | -6/Factory | Destroyed 8 combat bots 21745 | -6/Factory | Found Prototype Launcher 21745 | -6/Factory | Identified Rocket Array 22123 | -6/Factory | Fabricated KE Penetrator (x2) 22208 | -6/Factory | Cargo convoy interrupted 22371 | -6/Factory | High security lockdown imminent 22451 | -6/Factory | High security lockdown engaged 22467 | -6/Factory | Core integrity fell below 50% 22577 | -6/Factory | Entered Lower Caves 22594 | -6/Lower Caves | Met a Warlord Commander 22595 | -6/Lower Caves | Learned location of Warlord (-5) 22596 | -6/Lower Caves | Warlord Commander delivered Encrypted Comm Array 22602 | -6/Lower Caves | Found Unknown Device 22606 | -6/Lower Caves | Identified Encrypted Comm Array 22694 | -6/Lower Caves | A Derelict revealed a hidden shortcut to meet someone special 22803 | -6/Lower Caves | Entered Data Miner 22803 | -6/Data Miner | Discovered new exit (range 6) 22815 | -6/Data Miner | Met Data Miner 22822 | -6/Data Miner | Learned location of Section 7 (-2) 22822 | -6/Data Miner | Acquired the access code to Warlord's prototype stash 22828 | -6/Data Miner | Received God Mode back door access code from Data Miner 22862 | -6/Data Miner | Interfaced with the Data Conduit 22917 | -6/Data Miner | Entered Proximity Caves 22929 | -5/Proximity Caves | Lost 3 parts (2n1w) 22990 | -5/Proximity Caves | Learned Factory garrison access intel 23043 | -5/Proximity Caves | Attracted the attention of an 0b10 checkpoint 23266 | -5/Proximity Caves | Entered Factory 23266 | -5/Factory | Evolved 2 slots: Power x1, Utility x1 23267 | -5/Factory | Loaded intel: 249 machine locations 23268 | -5/Factory | Loaded intel: 4 garrison access locations 23586 | -5/Factory | Repaired Cld. Aerolev Unit 23875 | -5/Factory | Repaired Broken Helical Railgun 23885 | -5/Factory | Joined by Warlord Pyro squad 23921 | -5/Factory | Spotted B-75 Beast 24049 | -5/Factory | Identified exit to Upper Caves 24049 | -5/Factory | Identified exit to Extension 24053 | -5/Factory | Fabricated Cld. Airjet? 24071 | -5/Factory | Build established: Skirmisher 24135 | -5/Factory | Intercept squad dispatched 24139 | -5/Factory | Joined by Warlord Geek squad 24142 | -5/Factory | Spotted Tracker 24142 | -5/Factory | Garrison activated, responded to threat 24157 | -5/Factory | Destroyed Tracker 24166 | -5/Factory | First assault squad dispatched 24166 | -5/Factory | Spotted Combat Programmer 24179 | -5/Factory | Destroyed Combat Programmer 24242 | -5/Factory | Lost 5 parts (1u4w) 24245 | -5/Factory | Garrison activated, responded to threat 24487 | -5/Factory | Repaired Cmb. Airjet 24570 | -5/Factory | Repaired Cld. Aerolev Unit 24696 | -5/Factory | Fabricated H-77 Assassin? 24764 | -5/Factory | Joined by Warlord Pyro squad 24985 | -5/Factory | Lost 3 allies 25003 | -5/Factory | Entered Extension 25003 | -5/Extension | Accompanied by 1 ally 25004 | -5/Extension | Loaded intel: 32 machine locations 25039 | -5/Extension | Rescued a captive Derelict 25073 | -5/Extension | Rescued a captive Derelict 25097 | -5/Extension | Rescued a captive Derelict 25200 | -5/Extension | Rescued a captive Derelict 25201 | -5/Extension | Rescued a captive Derelict 25303 | -5/Extension | First assault squad dispatched 25528 | -5/Extension | Disrupted transfer network 25607 | -5/Extension | Spotted B-75 Beast 25613 | -5/Extension | Build established: Commander-Skirmisher 25616 | -5/Extension | Destroyed B-75 Beast 25652 | -5/Extension | Spotted B-75 Beast 25666 | -5/Extension | Allies destroyed B-75 Beast 25746 | -5/Extension | Rescued A7 26053 | -5/Extension | Rescued a captive Derelict 26080 | -5/Extension | High security lockdown imminent 26088 | -5/Extension | Discovered new exit (range 10) 26089 | -5/Extension | Discovered new exit (range 6) 26139 | -5/Extension | Entered Cetus 26139 | -5/Cetus | Accompanied by 13 allies (A7) 26140 | -5/Cetus | Loaded intel: 24 machine locations 26144 | -5/Cetus | Acquired a Cetus Manufacturing Module code from A7 26166 | -5/Cetus | Spotted Cetus Guard 26166 | -5/Cetus | Spotted Cetus Guard 26166 | -5/Cetus | Spotted Cetus Guard 26167 | -5/Cetus | Destroyed Cetus Guard 26168 | -5/Cetus | Spotted Cetus Guard 26170 | -5/Cetus | Destroyed Cetus Guard 26173 | -5/Cetus | Allies destroyed Cetus Guard 26174 | -5/Cetus | Destroyed Cetus Guard 26203 | -5/Cetus | Started Cetus Manufacturing Module 26228 | -5/Cetus | Manufactured an Enhanced Grunt 26253 | -5/Cetus | Manufactured an Enhanced Grunt 26265 | -5/Cetus | Discovered new exit (range 15) 26278 | -5/Cetus | Manufactured an Enhanced Grunt 26303 | -5/Cetus | Manufactured an Enhanced Grunt 26305 | -5/Cetus | Escorted A7 to Cetus Mainframe 26328 | -5/Cetus | Manufactured an Enhanced Grunt 26375 | -5/Cetus | Spotted Cetus Guard 26375 | -5/Cetus | Spotted Cetus Guard 26376 | -5/Cetus | Allies destroyed Cetus Guard 26376 | -5/Cetus | Spotted Cetus Guard 26377 | -5/Cetus | Spotted Cetus Guard 26379 | -5/Cetus | Destroyed Cetus Guard 26395 | -5/Cetus | Destroyed Cetus Guard 26400 | -5/Cetus | Destroyed Cetus Guard 26409 | -5/Cetus | Found Exp. Thermal Shield 26414 | -5/Cetus | Discovered new exit (range 16) 26417 | -5/Cetus | Met Revision 17 26421 | -5/Cetus | Lost 3 allies 26497 | -5/Cetus | Entered Archives 26497 | -5/Archives | Accompanied by 14 allies (A7) 26498 | -5/Archives | Loaded intel: 8 machine locations 26502 | -5/Archives | Received a hacking code to weaken MAIN.C 26534 | -5/Archives | Discovered new exit (range 15) 26543 | -5/Archives | Unable to access archive contents 26548 | -5/Archives | Discovered new exit (range 15) 26617 | -5/Archives | Discovered new exit (range 15) 26711 | -5/Archives | Build established: Scavenger-Skirmisher 26756 | -5/Archives | Entered Hub_04(d) 26756 | -5/Hub_04(d) | Accompanied by 12 allies 26757 | -5/Hub_04(d) | Loaded intel: 75 machine locations 26767 | -5/Hub_04(d) | Spotted B-75 Beast 26864 | -5/Hub_04(d) | Allies destroyed B-75 Beast 26874 | -5/Hub_04(d) | Identified exit to Garrison 26989 | -5/Hub_04(d) | Lost 4 allies 26998 | -5/Hub_04(d) | Discovered new exit (range 9) 27033 | -5/Hub_04(d) | Discovered new exit (range 15) 27127 | -5/Hub_04(d) | Identified exit to Factory 27188 | -5/Hub_04(d) | Identified exit to Garrison 27246 | -5/Hub_04(d) | Lost 3 parts (2n1u) 27253 | -5/Hub_04(d) | Network Hub disabled 27258 | -5/Hub_04(d) | Spotted Lightning 27258 | -5/Hub_04(d) | Entered Factory 27258 | -4/Factory | Evolved 2 slots: Propulsion x1, Utility x1 27259 | -4/Factory | Loaded intel: 306 machine locations 27573 | -4/Factory | Joined by Warlord Dakka squad 27658 | -4/Factory | Lost 3 allies 27688 | -4/Factory | Joined by Warlord Geek squad 27716 | -4/Factory | Identified exit to Upper Caves 27817 | -4/Factory | Discovered new exit (range 7) 27824 | -4/Factory | Intercept squad dispatched 27831 | -4/Factory | Spotted Tracker 27833 | -4/Factory | Allied Derelicts emerged from ambush trap array 27836 | -4/Factory | Destroyed Tracker 27867 | -4/Factory | Spotted Combat Programmer 27871 | -4/Factory | Combat Programmer assimilated allied 41-EIA(g) 28503 | -4/Factory | Discovered new exit (range 15) 28632 | -4/Factory | System corruption reached 10% 28662 | -4/Factory | Lost 3 parts (1n2u) 28724 | -4/Factory | Discovered new exit (range 9) 28808 | -4/Factory | Repaired Broken Rocket Array? 28823 | -4/Factory | Joined by Warlord Infantry squad 29218 | -4/Factory | P-70 Sage assimilated allied NF-3QH(m) 29356 | -4/Factory | Intercept squad dispatched 29373 | -4/Factory | Spotted Tracker 29374 | -4/Factory | Spotted Tracker 29383 | -4/Factory | Destroyed Tracker 29394 | -4/Factory | Spotted Combat Programmer 29399 | -4/Factory | Destroyed Tracker 29416 | -4/Factory | Core integrity fell below 50% 29424 | -4/Factory | Destroyed Combat Programmer 29426 | -4/Factory | Spotted Combat Programmer 29454 | -4/Factory | Core integrity fell below 20% 29486 | -4/Factory | Lost 18 parts (3p5n6u4w) 29509 | -4/Factory | Entered Upper Caves 29521 | -4/Upper Caves | 12-ASH showed up to help 29523 | -4/Upper Caves | 12-ASH revealed a hidden path 29534 | -4/Upper Caves | Lost 3 parts (2p1n) 29557 | -4/Upper Caves | System corruption reached 30% 29760 | -4/Upper Caves | Discovered new exit (range 15) 29765 | -4/Upper Caves | Encountered a Warlord checkpoint 29789 | -4/Upper Caves | Attracted the attention of an 0b10 checkpoint 29860 | -4/Upper Caves | Entered another Upper Caves area 29887 | -4/Upper Caves | Discovered new exit (range 5) 30143 | -4/Upper Caves | Build established: Scavenger-Tank 30210 | -4/Upper Caves | Discovered new exit (range 6) 30212 | -4/Upper Caves | Entered Zhirov 30212 | -4/Zhirov | Discovered new exit (range 3) 30226 | -4/Zhirov | Met Zhirov 30238 | -4/Zhirov | Found Alien Artifact 30238 | -4/Zhirov | Identified Integrated Reactor 30238 | -4/Zhirov | Installed Integrated Reactor, increased core energy generation (+10) 30245 | -4/Zhirov | Found Alien Artifact 30351 | -4/Zhirov | Found Hvy. Reflective Plating 30375 | -4/Zhirov | Zhirov requested help retrieving the SGEMP Prototype 30434 | -4/Zhirov | Entered Proximity Caves 30465 | -3/Proximity Caves | Unaware initiated a cargo recovery operation 30474 | -3/Proximity Caves | Spotted B-86 Titan 30526 | -3/Proximity Caves | Destroyed by S-43 Plague with Heavy Machine Gun Last Messages --------------- 30513_ Slug penetrates Earth. 30515_ Imp. Gyrokinetic Inverter destroyed. 30517_ Slug penetrates Wall. 30518_ Unknown Flight Unit fries itself beyond repair. 30518_ KE Penetrator destroyed. 30519_ Adv. Coolant Injector melts away. 30519_ Antigrav System destroyed. 30520_ Unknown Ballistic Gun fries itself beyond repair. 30523_ Destroyed Unknown Flight Unit. 30523_ S-43 Plague suffers critical hit (Blast). 30523_ Destroyed Unknown Flight Unit. 30523_ S-43 Plague knocked back. 30523_ Slug penetrates Wall. 30523_ Slug penetrates S-43 Plague. 30523_ S-43 Plague knocked back. 30526_ S-43 Plague destroyed. 30526_ Slug penetrates Wall. 30526_ S-43 Plague knocked back. Map ----- +----------------------------------------------------+ | ?????????????????????????????????????????????????? | | ?????????????????????????????????????????????????? | | ?????????????????????????????????????????????????? | | ?????????????????????????????????????????????????? | | ?????????????????????????????????????????????????? | | ?????????????????????????????????????????????????? | | ?????????????????????????????????????????????????? | | ?????????????????????????????????????????????????? | | ?????????????????????????????????????????????????? | | ???????????????????????????##????????????????????? | | ??????????????????????????# #??????????????????? | | ?????????????????????????? ??????????????????? | | ?????????????????????????? ??????????????????? | | ?????????????????????????? #??????????????????? | | ?????????????????????##??? ##??##?????????????? | | ???????????????####### ### ## ??????????????? | | ?????????????### ???????????????? | | ???????????### ????????????????? | | ??????????? ?????????????????? | | ??????????? ??????????????????? | | ???????????# ???????????????????? | | ???????????# #?#??????????????????? | | ??????????## ???? #;#??????????????????? | | ??????????# ??????# ;##?????????????????? | | ??????????# ?????# s ###???????????????? | | ??????????# #????# @ % %% ;;#????????????? | | ??????????? ##### ;; s % #?????????????? | | ??#???????????# ## ##;; ;??????????? | | ??# ??????????# ##?## ###?????????? | | ?? ??????????## #???? ;#??????????? | | ??? ???????????# #????? ##??????????? | | ??## #?????????## ####?????? ; ??????????? | | ### # ????????## ##????????? # ??????????? | | # #??###### ##??????????? #;####???????????? | | ### ####???????????? ###??????????????? | | ## #????????????????#????????????????? | | ##????????????????????????????????? | | ### ###??????????????????????????????? | | ### #??????????????????????????????? | | ##?????????????????????????????? | | #?????????????????????????????? | | ### ##?????????????????????????????? | | # #??####??????????????????????????????? | | #### ## #????????????????????????????????????? | | ???## ### #????????????????????????????????????? | | ###### ### #????????????????????????????????????? | | # ## ????????????????????????????????????? | | ####????????????????????????????????????? | | #???????????????????????????????????????? | | #??###??????????????????????????????????? | +----------------------------------------------------+ Best States ------------- Heat Dissipation 84 Coolant Potential 100 Energy Generation 49 Energy Capacity 565 Matter Stores 300 Matter Capacity 300 Sight Range 16 Terrain Scan Range 24 Terrain Scan Density 10 Power Amplification 30 Additional Mass Support 16 Armor Coverage 600 Resistance: TH 25 Propulsion Shielding 66 Weapon Shielding 90 Evasion (%) 67 Targeting Accuracy 8 Melee Accuracy 5 Target Analysis 6 Recoil Reduction 7 Matter Filtering 50 Offensive Hacking 24 Defensive Hacking 24 Authchip Count 1 Item Schematics ----------------- Cld. Ion Engine | -9/Materials | Scanalyzed Cooling System | -9/Materials | Scanalyzed Hrd. Light Armor Plating | -9/Materials | Scanalyzed Arm. Treads | -9/Materials | Scanalyzed Mni. Grenade Launcher | -9/Materials | Scanalyzed Recoil Stabilizer | -8/Materials | Scanalyzed Rnf. Deuterium Engine | -8/Recycling | Hacked Cld. Airjet | -6/Factory | Scanalyzed Combat Drone Bay | -6/Data Miner | Free Lgt. Regenerative Plating | -6/Data Miner | Free Enh. Armored Leg | -6/Data Miner | Free Imp. Matter Compressor | -6/Data Miner | Free Enh. Force Rifle | -6/Data Miner | Free Field Propulsion Array | -6/Data Miner | Free Adv. Cryofiber Web | -6/Data Miner | Free Hvy. Gauss Cannon | -6/Data Miner | Free Gyrokinetic Inverter | -6/Data Miner | Free Imp. Cloaking Device | -6/Data Miner | Free Com. Mass Driver | -5/Factory | Scanalyzed Hardcell Cannon | -5/Extension | Hacked Cmb. Gravmag System | -5/Hub_04(d) | Hacked Cmb. Antigrav System | -5/Hub_04(d) | Hacked Assault Drone Bay | -4/Zhirov | Free Exp. Heat Sink | -4/Zhirov | Free Exp. Optical Array | -4/Zhirov | Free Imp. Arc Thrower | -4/Zhirov | Free Robot Schematics ------------------ Y-45 Defender | -8/Storage | Hacked O-24 Administrator | -8/Recycling | Hacked C-35 Carver | -6/Data Miner | Free M-22 Extractor | -6/Data Miner | Free B-60 Warrior | -6/Data Miner | Free G-50 Soldier | -6/Data Miner | Free H-77 Assassin | -6/Data Miner | Free G-67 Veteran | -6/Data Miner | Free A-27 Freighter | -6/Data Miner | Free Fabricated ------------ Recoil Stabilizer | x2 | -6/Factory KE Penetrator | x2 | -6/Factory | Preloaded H-77 Assassin | x2 | -5/Factory Repaired ---------- Arm. Treads | 15% | -8/Materials Lgt. Armor Plating | 13% | -8/Materials Cld. Airjet | 99% | -6/Factory | Broken Hyp. Railgun | 4% | -6/Factory | Broken Imp. Propulsion Shielding | 31% | -6/Factory Coil Gun | 16% | -6/Factory | Broken Coil Gun | 10% | -6/Factory | Broken Hyp. Railgun | 16% | -6/Factory Cld. Aerolev Unit | 11% | -5/Factory Helical Railgun | 70% | -5/Factory | Broken Cmb. Airjet | 35% | -5/Factory Cld. Aerolev Unit | 27% | -5/Factory Rocket Array | 50% | -4/Factory | Broken Alien Tech Used ----------------- Integrated Reactor Achievements -------------- None Challenges ------------ None Game ------ Seed ShockSmartOptics Manual? 0 Play Time 06:25:41 Cumulative 330.9 hours Start 2025.06.20 @ 22:23:08 End 2025.06.21 @ 16:26:12 Sessions 11 Manual Loads 0 Difficulty Rogue Special Mode None Game No. 198 Rogue 198 Adventurer 0 Explorer 0 Win Type - Total 4 Types 2/0/1/1/0/0/0/0/0/0 Lore% 84 Gallery% 72 Achievement% 67 Wizard Run 0 Options --------- Layout 2 ASCII 0 Keyboard 1 Movement Vi Keybinds 0 Fullscreen 1 Font 16/Tamsyn Map View 55x47 Zoom Use 0% Tactical HUD 1 Map Filters NONE Filters NONE Steam 0 RUN: 7ced8694-da7b-4804-b4f3-f8324976ea9a